bitfinex/quotes_SOLUSD_20240705
["timestamp","ask_amount","ask_price","bid_price","bid_amount"]
[1720183970599,7.7156,129.61,129.55,19.2971]
[1720183970600,14.6049,129.62,129.57,7.7177]
[1720183971005,7.7143,129.63,129.58,7.717]
[1720183971521,7.7132,129.65,129.6,7.716]
[1720183972605,24.8537,129.66,129.53,100.0]
[1720183972606,7.7164,129.6,129.53,7.103]
[1720183972811,24.8537,129.66,129.53,7.103]
[1720183973005,7.7163,129.6,129.56,19.2948]
[1720183973417,7.7156,129.61,129.56,27.0131]
[1720183973831,7.7161,129.6,129.56,27.0131]
[1720183974227,7.7155,129.61,129.57,7.7177]
[1720183974532,7.8853,129.62,129.57,7.7177]
[1720183974713,20.0,129.61,129.57,7.7177]
[1720183975028,7.8853,129.62,129.58,7.7171]
[1720183976430,7.8853,129.62,129.57,7.7176]
[1720183977103,7.8853,129.62,129.58,7.7171]
[1720183977104,0.17,129.62,129.58,7.7171]
[1720183977303,20.0,129.62,129.58,7.7171]
[1720183977910,20.0,129.62,129.54,100.0]
[1720183978236,7.7138,129.64,129.59,27.0078]
[1720183978530,20.0,129.63,129.59,27.0078]
[1720183979126,20.0,129.63,129.6,7.7159]
[1720183979331,20.0,129.65,129.6,7.7159]
[1720183979518,0.17,129.64,129.6,7.7159]
[1720183979720,0.17,129.64,129.56,19.2947]
[1720183980021,7.7163,129.6,129.56,27.0127]
[1720183980238,19.2877,129.62,129.53,7.103]
[1720183980430,27.7157,129.61,129.55,19.2969]
[1720183980633,20.0,129.61,129.57,7.7175]
[1720183980824,20.0,129.61,129.53,7.103]
[1720183981025,27.7155,129.61,129.56,27.0124]
[1720183981527,20.0,129.61,129.56,19.2946]
[1720183981834,7.7163,129.6,129.56,7.7182]
[1720183982335,20.17,129.62,129.56,19.2954]
[1720183982540,20.0,129.61,129.57,7.7173]
[1720183982738,20.0,129.61,129.58,7.7171]
[1720183982942,27.7156,129.61,129.57,7.7175]
[1720183983436,20.0,129.61,129.57,27.0107]
[1720183983620,7.7156,129.61,129.57,27.0107]
[1720183984221,7.8851,129.62,129.57,27.0107]
[1720183984516,27.7155,129.61,129.57,27.0107]
[1720183985056,20.0,129.61,129.58,7.7171]
[1720183985632,20.0,129.61,129.55,7.7188]
[1720183985633,7.7165,129.6,129.55,7.7188]
[1720183985838,7.7177,129.58,129.53,7.103]
[1720183986010,20.0,129.61,129.53,7.103]
[1720183986213,44.64871107,129.64,129.53,7.103]
[1720183986214,39.287,129.63,129.56,7.7183]
[1720183986416,7.716,129.6,129.55,7.7187]
[1720183986617,7.716,129.6,129.56,7.7183]
[1720183986844,19.2921,129.59,129.51,7.7213]
[1720183987028,7.72,129.54,129.5,259.9]
[1720183987229,19.2958,129.57,129.47,17.0111]
[1720183987427,7.7213,129.52,129.46,6.8427]
[1720183987641,0.17,129.55,129.46,6.8427]
[1720183987843,7.7212,129.52,129.47,7.7236]
[1720183988530,7.7214,129.51,129.46,33.8771]
[1720183988917,7.7209,129.52,129.46,26.1529]
[1720183989120,7.7201,129.54,129.48,7.7229]
[1720183989443,20.0,129.53,129.46,6.8427]
[1720183989638,7.8886,129.56,129.51,7.7214]
[1720183989836,20.0,129.58,129.46,29.9727]
[1720183990160,27.7172,129.58,129.53,7.7201]
[1720183990336,7.7178,129.57,129.48,123.13]
[1720183990520,6.04465562,129.6,129.52,19.3008]
[1720183990718,7.7168,129.59,129.52,19.3008]
[1720183990914,23.5891,129.62,129.54,7.7194]
[1720183990915,7.7172,129.58,129.54,7.7194]
[1720183991134,7.7172,129.58,129.53,7.72]
[1720183991433,7.718,129.57,129.52,27.0214]
[1720183992234,48.94377915,129.62,129.51,7.7212]
[1720183992235,7.7188,129.56,129.51,7.7212]
[1720183992436,7.719,129.55,129.51,7.7212]
[1720183992641,7.8886,129.56,129.48,100.0]
[1720183992949,7.7186,129.56,129.48,100.0]
[1720183993152,7.7186,129.56,129.51,7.721]
[1720183993744,7.7177,129.58,129.52,7.7206]
[1720183993924,20.0,129.57,129.52,7.7206]
[1720183994129,7.7184,129.56,129.51,27.0241]
[1720183994333,7.7191,129.55,129.51,19.303]
[1720183994528,20.0,129.57,129.48,119.3068]
[1720183994724,7.7192,129.55,129.5,7.7214]
[1720183995653,7.7196,129.54,129.5,7.7214]
[1720183995948,27.7179,129.57,129.52,7.7203]
[1720183996153,7.7184,129.56,129.52,7.7203]
[1720183996649,7.7184,129.56,129.51,7.7212]
[1720183996852,7.7191,129.55,129.5,27.0263]
[1720183997060,7.7184,129.56,129.51,7.7211]
[1720183997230,7.7184,129.56,129.5,19.3045]
[1720183998132,20.0,129.57,129.54,7.7192]
[1720183998337,42.8769,129.62,129.48,23.13]
[1720183998338,27.7172,129.58,129.48,23.13]
[1720183998531,27.7172,129.58,129.53,7.7198]
[1720183998732,7.7181,129.57,129.52,7.7206]
[1720183999155,7.7184,129.56,129.52,7.7206]
[1720183999450,7.7184,129.56,129.51,19.303]
[1720183999654,7.7184,129.56,129.51,27.0242]
[1720184000030,20.0,129.58,129.51,19.303]
[1720184000333,20.0,129.59,129.53,7.7197]
[1720184000858,7.7178,129.57,129.52,7.7206]
[1720184001033,19.4603,129.6,129.51,19.303]
[1720184001034,27.7186,129.56,129.51,27.0243]
[1720184001237,27.7186,129.56,129.52,7.7206]
[1720184002045,7.719,129.55,129.51,19.303]
[1720184002432,7.719,129.55,129.51,27.0243]
[1720184002742,27.7186,129.56,129.51,27.0243]
[1720184003154,5.93267262,129.61,129.53,19.3001]
[1720184003339,23.5891,129.62,129.53,19.3001]
[1720184003534,7.7162,129.6,129.55,7.7188]
[1720184004042,7.7168,129.59,129.55,7.7188]
[1720184004636,9.79402606,129.64,129.6,7.716]
[1720184004835,24.3042,129.66,129.6,7.716]
[1720184005050,7.7132,129.65,129.6,7.716]
[1720184005250,7.7114,129.68,129.63,7.7137]
[1720184005438,19.2742,129.71,129.63,19.2854]
[1720184005645,7.7118,129.68,129.63,7.7138]
[1720184005846,7.7111,129.69,129.61,24.3684]
[1720184006049,7.7114,129.68,129.64,7.7136]
[1720184006240,7.7107,129.69,129.65,7.7129]
[1720184006442,7.7107,129.69,129.64,26.9967]
[1720184006735,1.76275642,129.73,129.65,7.7128]
[1720184007458,21.03405642,129.73,129.64,19.2833]
[1720184007855,7.7096,129.71,129.66,7.7123]
[1720184008560,20.0,129.7,129.66,7.7123]
[1720184008970,17.1325,129.8,129.65,100.0]
[1720184009278,7.7078,129.74,129.7,7.71]
[1720184009571,7.7078,129.74,129.69,7.7104]
[1720184010071,7.7083,129.73,129.69,7.7104]
[1720184010368,38.5283,129.78,129.65,26.9941]
[1720184010569,7.7108,129.69,129.64,7.7134]
[1720184010957,7.7136,129.64,129.59,7.7165]
[1720184011166,7.7136,129.64,129.6,7.716]
[1720184011468,15.0,129.72,129.61,7.7154]
[1720184011469,7.7126,129.66,129.61,7.7154]
[1720184011651,27.7132,129.65,129.61,7.7154]
[1720184011853,7.7132,129.65,129.61,7.7152]
[1720184012059,19.2762,129.7,129.63,7.7139]
[1720184012368,7.7119,129.67,129.62,7.7144]
[1720184012568,7.7125,129.66,129.61,7.7153]
[1720184012782,7.713,129.65,129.6,7.7159]
[1720184013075,0.17,129.67,129.6,19.2889]
[1720184013249,0.17,129.67,129.62,27.0016]
[1720184013250,7.7123,129.67,129.62,27.0016]
[1720184013456,20.0,129.66,129.62,19.2869]
[1720184013866,20.0,129.66,129.59,27.0066]
[1720184014070,7.7152,129.62,129.58,6.9421]
[1720184014967,20.0,129.66,129.58,6.9421]
[1720184015155,39.2793,129.68,129.58,6.9421]
[1720184015470,7.7137,129.64,129.6,7.7158]
[1720184016056,7.8832,129.65,129.6,7.7158]
[1720184016257,0.17,129.65,129.58,6.9421]
[1720184016454,1.76275642,129.72,129.58,6.9421]
[1720184016652,0.88727809,129.74,129.59,123.13]
[1720184016653,29.94054793,129.73,129.59,123.13]
[1720184016964,43.2948,129.73,129.64,19.283]
[1720184017165,7.711,129.69,129.64,26.9965]
[1720184017472,7.711,129.69,129.65,7.7129]
[1720184017687,7.7132,129.65,129.6,7.7159]
[1720184017965,38.545,129.72,129.59,7.7165]
[1720184017966,7.7136,129.64,129.59,7.7165]
[1720184018175,19.2773,129.69,129.6,19.289]
[1720184018369,7.7134,129.65,129.58,6.9421]
[1720184018569,42.08139488,129.72,129.58,6.9421]
[1720184018570,7.7136,129.64,129.58,6.9421]
[1720184018769,7.7143,129.63,129.59,7.7165]
[1720184018974,7.7143,129.63,129.59,19.2903]
[1720184019170,7.7143,129.63,129.59,27.0068]
[1720184019375,19.4531,129.65,129.58,6.9421]
[1720184019560,20.0,129.64,129.59,7.7166]
[1720184019767,0.17,129.63,129.59,7.7166]
[1720184019974,20.0,129.64,129.6,7.7159]
[1720184020212,7.7143,129.63,129.58,14.6588]
[1720184020375,7.7143,129.63,129.59,7.7165]
[1720184020684,27.8838,129.64,129.59,7.7161]
[1720184020858,7.7151,129.62,129.58,6.9421]
[1720184021060,0.17,129.63,129.58,6.9421]
[1720184021263,0.17,129.63,129.59,7.7162]
[1720184021482,27.7132,129.65,129.6,7.716]
[1720184021668,0.17,129.64,129.61,7.7154]
[1720184022167,20.0,129.65,129.6,19.2899]
[1720184022373,27.7132,129.65,129.6,19.2899]
[1720184022588,20.0,129.65,129.62,27.0013]
[1720184022763,7.7123,129.67,129.62,27.0013]
[1720184022764,20.0,129.66,129.62,27.0013]
[1720184022966,20.0,129.66,129.63,7.7141]
[1720184023182,7.7113,129.68,129.63,7.7137]
[1720184023363,7.7113,129.68,129.62,19.2869]
[1720184023564,7.7119,129.67,129.62,7.7146]
[1720184023763,7.7119,129.67,129.62,7.7143]
[1720184023981,7.7119,129.67,129.57,16.4735]
[1720184023982,1.77475546,129.66,129.57,16.4735]
[1720184024396,1.77475546,129.66,129.59,7.7162]
[1720184024397,7.7138,129.64,129.59,7.7162]
[1720184024700,7.7138,129.64,129.6,7.716]
[1720184024998,20.0,129.63,129.6,7.716]
[1720184025202,20.0,129.63,129.59,7.7164]
[1720184025383,1.77475546,129.66,129.59,7.7164]
[1720184025384,21.77475546,129.66,129.59,7.7164]
[1720184025582,0.17,129.65,129.59,7.7164]
[1720184026388,7.7143,129.63,129.59,7.7164]
[1720184026590,7.7137,129.64,129.59,7.7164]
[1720184026798,20.17,129.63,129.58,27.0101]
[1720184026971,7.8846,129.63,129.58,27.0101]
[1720184027176,7.8846,129.63,129.59,7.7165]
[1720184027396,7.715,129.62,129.58,27.0101]
[1720184027598,7.715,129.62,129.58,19.293]
[1720184027902,20.17,129.61,129.55,33.6896]
[1720184028082,7.7165,129.6,129.55,33.6896]
[1720184028283,0.17,129.61,129.55,27.0147]
[1720184028480,7.7162,129.6,129.55,27.0147]
[1720184028683,7.7166,129.59,129.55,27.0147]
[1720184028906,0.17,129.59,129.56,7.7184]
[1720184029082,7.8857,129.61,129.56,7.7184]
[1720184029279,7.8857,129.61,129.57,7.7176]
[1720184029498,7.8857,129.61,129.56,7.7183]
[1720184029685,7.8855,129.61,129.57,7.7176]
[1720184029890,0.17,129.61,129.53,16.4023]
[1720184030089,7.7162,129.6,129.55,7.7185]
[1720184030494,7.7162,129.6,129.56,7.7183]
[1720184030680,7.7162,129.6,129.55,7.7187]
[1720184030998,7.7162,129.6,129.56,7.7184]
[1720184031909,7.7162,129.6,129.55,7.7188]
[1720184032094,7.7162,129.6,129.54,19.298]
[1720184032095,0.17,129.59,129.54,19.298]
[1720184032292,20.0,129.61,129.56,19.2952]
[1720184032491,27.7159,129.61,129.57,7.7175]
[1720184032704,27.7159,129.61,129.56,27.0134]
[1720184032882,0.17,129.6,129.56,27.0134]
[1720184033084,0.17,129.6,129.57,7.7176]
[1720184033283,27.7159,129.61,129.57,7.7177]
[1720184033505,7.7162,129.6,129.56,27.0133]
[1720184033715,0.17,129.59,129.56,19.2952]
[1720184033888,7.716,129.6,129.56,27.0131]
[1720184034391,27.7156,129.61,129.56,27.0131]
[1720184034587,27.7156,129.61,129.57,7.7178]
[1720184034791,20.0,129.61,129.57,7.7178]
[1720184035002,0.17,129.62,129.57,7.7178]
[1720184035227,0.17,129.63,129.57,7.7178]
[1720184035712,7.7148,129.62,129.58,7.7168]
[1720184036496,5.97957563,129.65,129.59,7.7163]
[1720184036826,7.7143,129.63,129.59,7.7163]
[1720184037304,7.7143,129.63,129.58,27.0087]
[1720184037514,7.7143,129.63,129.55,100.0]
[1720184037515,7.7157,129.61,129.57,7.7176]
[1720184037693,7.715,129.62,129.58,7.7172]
[1720184037886,0.17,129.63,129.6,7.7159]
[1720184038212,0.17,129.63,129.55,100.0]
[1720184038213,20.17,129.63,129.55,100.0]
[1720184038583,27.8845,129.63,129.59,7.7165]
[1720184039182,20.17,129.63,129.58,19.2917]
[1720184039403,20.17,129.63,129.6,7.7157]
[1720184039729,27.8842,129.63,129.59,7.7164]
[1720184040608,27.8842,129.63,129.58,27.0086]
[1720184041806,27.8842,129.63,129.59,7.7164]
[1720184042185,20.0,129.63,129.55,100.0]
[1720184042386,7.7131,129.65,129.61,7.7152]
[1720184042591,7.7138,129.64,129.6,27.0043]
[1720184043117,1.77475546,129.66,129.62,27.0013]
[1720184043288,1.77475546,129.66,129.63,7.7138]
[1720184043489,1.77475546,129.66,129.64,7.7135]
[1720184043709,1.77475546,129.66,129.63,26.9982]
[1720184043899,1.77475546,129.66,129.64,7.7134]
[1720184044218,1.77475546,129.66,129.65,7.713]
[1720184044591,7.7108,129.69,129.65,7.713]
[1720184044809,24.1703,129.72,129.66,7.7124]
[1720184045015,7.7098,129.71,129.67,7.7118]
[1720184045509,7.7098,129.71,129.66,7.7122]
[1720184045711,7.7102,129.7,129.66,7.7122]
[1720184047806,7.7102,129.7,129.65,26.9952]
[1720184048191,19.2751,129.78,129.67,123.13]
[1720184048511,7.7048,129.79,129.74,26.976]
[1720184048721,23.55268026,129.81,129.76,7.7064]
[1720184049011,25.7931,129.83,129.76,7.7064]
[1720184049210,7.7038,129.81,129.76,26.9724]
[1720184049593,7.7042,129.8,129.76,26.9724]
[1720184049795,7.7045,129.8,129.76,19.2662]
[1720184050106,7.7045,129.8,129.76,26.9725]
[1720184050295,7.7038,129.81,129.76,19.2662]
[1720184050502,20.0,129.8,129.77,7.7059]
[1720184050709,7.7038,129.81,129.77,7.7059]
[1720184050914,21.5364,129.77,129.61,23.6185]
[1720184051419,15.0,129.75,129.62,7.7147]
[1720184051602,7.7122,129.67,129.62,7.7147]
[1720184051796,0.17,129.74,129.61,50.6215]
[1720184051797,7.7126,129.66,129.61,50.6215]
[1720184052104,0.17,129.68,129.61,19.2877]
[1720184052303,7.7115,129.68,129.63,26.9994]
[1720184052496,20.17,129.67,129.64,7.7135]
[1720184052703,7.7128,129.66,129.61,7.7148]
[1720184053006,27.712,129.67,129.62,7.7147]
[1720184053203,27.712,129.67,129.62,27.0017]
[1720184053426,27.712,129.67,129.63,7.714]
[1720184053599,20.0,129.67,129.63,7.714]
[1720184053794,27.7119,129.67,129.63,7.714]
[1720184054004,7.8828,129.66,129.62,19.287]
[1720184054599,20.0,129.67,129.62,19.287]
[1720184054822,7.8815,129.68,129.63,7.7138]
[1720184055023,20.0,129.67,129.63,7.7138]
[1720184055226,20.0,129.67,129.64,7.7136]
[1720184055604,14.2466,129.7,129.65,7.7126]
[1720184055804,0.17,129.69,129.65,7.7126]
[1720184056028,20.0,129.69,129.66,7.712]
[1720184056206,20.0,129.7,129.64,100.0]
[1720184056712,7.7096,129.71,129.64,100.0]
[1720184057130,6.5364,129.74,129.64,100.0]
[1720184057418,7.7093,129.72,129.68,19.278]
[1720184058233,7.7093,129.72,129.68,26.9892]
[1720184058616,3.2569797,129.77,129.68,19.278]
[1720184058811,7.7078,129.74,129.7,7.7097]
[1720184059125,7.7073,129.75,129.7,7.7097]
[1720184059517,7.7072,129.75,129.71,7.709]
[1720184060101,6.08003741,129.78,129.67,7.0905]
[1720184060327,7.7063,129.77,129.72,7.7086]
[1720184060523,7.7063,129.77,129.73,7.708]
[1720184060904,7.7066,129.76,129.72,26.9809]
[1720184061233,20.0,129.75,129.7,7.7099]
[1720184061521,9.17438111,129.8,129.7,7.7099]
[1720184061522,7.7077,129.74,129.7,19.2752]
[1720184061725,7.7074,129.75,129.71,7.7093]
[1720184061928,20.0,129.74,129.7,26.985]
[1720184062103,7.7075,129.75,129.7,26.985]
[1720184062316,20.0,129.74,129.7,26.985]
[1720184062827,7.709,129.72,129.68,7.711]
[1720184063003,0.17,129.73,129.67,26.3691]
[1720184063004,20.0,129.71,129.67,26.3691]
[1720184063326,0.17,129.73,129.67,19.2786]
[1720184063829,0.17,129.73,129.69,19.2762]
[1720184064007,0.17,129.73,129.7,7.7097]
[1720184064620,27.7077,129.74,129.7,7.7097]
[1720184064822,20.0,129.74,129.71,7.7093]
[1720184065409,7.7083,129.73,129.69,26.9867]
[1720184065625,20.0,129.74,129.7,7.71]
[1720184065935,27.7077,129.74,129.7,7.71]
[1720184066408,20.0,129.74,129.7,7.71]
[1720184066614,20.0,129.74,129.71,7.7094]
[1720184066815,0.17,129.75,129.72,7.7089]
[1720184067133,0.17,129.75,129.71,7.7092]
[1720184067314,15.73513224,129.76,129.72,7.7088]
[1720184067520,15.73513224,129.76,129.71,7.709]
[1720184067729,15.73513224,129.76,129.72,7.7088]
[1720184068033,7.7071,129.75,129.71,7.7093]
[1720184068432,7.7078,129.74,129.7,26.9837]
[1720184069119,7.7087,129.73,129.67,19.2786]
[1720184069322,7.7087,129.73,129.69,7.7106]
[1720184069532,7.8779,129.74,129.69,7.7106]
[1720184070028,7.8778,129.74,129.7,7.71]
[1720184070724,8.02843224,129.76,129.69,19.2753]
[1720184070922,20.17,129.75,129.69,19.2753]
[1720184071121,27.8774,129.75,129.71,7.7094]
[1720184072835,27.8774,129.75,129.7,7.7098]
[1720184073014,27.7074,129.75,129.71,7.7093]
[1720184073536,7.7081,129.74,129.7,26.9836]
[1720184073725,7.7083,129.73,129.7,19.2738]
[1720184074439,7.7072,129.75,129.71,7.7094]
[1720184075418,15.90513224,129.76,129.72,7.7088]
[1720184075739,8.02843224,129.76,129.72,19.272]
[1720184075914,8.02843224,129.76,129.73,7.7082]
[1720184076924,8.02843224,129.76,129.74,7.7076]
[1720184077242,7.7054,129.78,129.75,19.2678]
[1720184077435,7.7049,129.79,129.75,26.9748]
[1720184077616,8.0252815,129.79,129.76,7.7064]
[1720184077816,7.7046,129.8,129.76,7.7064]
[1720184078133,28.02520366,129.79,129.76,7.7064]
[1720184078648,8.02520366,129.79,129.77,7.7058]
[1720184078936,8.02520366,129.79,129.72,17.1805]
[1720184079340,15.73020366,129.79,129.75,7.7068]
[1720184081227,7.7054,129.78,129.74,26.9754]
[1720184081630,15.73010366,129.79,129.75,7.707]
[1720184081927,7.7053,129.78,129.74,26.9754]
[1720184082830,15.73020366,129.79,129.74,26.9754]
[1720184083042,15.73020366,129.79,129.72,7.7085]
[1720184083043,7.7069,129.76,129.72,7.7085]
[1720184083337,7.706,129.77,129.73,26.9789]
[1720184083541,0.17,129.78,129.74,7.7073]
[1720184083740,7.8757,129.78,129.74,7.7073]
[1720184083947,0.17,129.78,129.73,19.2707]
[1720184084144,7.7062,129.77,129.73,26.9787]
[1720184084546,7.7071,129.75,129.71,7.7092]
[1720184084720,19.4333,129.78,129.72,7.7087]
[1720184084721,7.7067,129.76,129.72,7.7087]
[1720184084918,7.7061,129.77,129.73,7.7083]
[1720184085130,0.17,129.78,129.75,7.7065]
[1720184085749,0.17,129.78,129.76,7.7065]
[1720184086247,0.17,129.78,129.75,26.9731]
[1720184086635,15.73000366,129.79,129.75,26.9731]
[1720184088836,8.02520366,129.79,129.76,7.7062]
[1720184089949,8.02520366,129.79,129.75,19.2663]
[1720184090247,8.02520366,129.79,129.76,7.706]
[1720184090743,8.02520366,129.79,129.75,19.2663]
[1720184091251,8.02520366,129.79,129.76,7.7061]
[1720184093248,8.02520366,129.79,129.75,19.2663]
[1720184093424,8.02520366,129.79,129.76,7.7062]
[1720184093749,8.02520366,129.79,129.75,19.2663]
[1720184093750,8.02520366,129.79,129.77,19.2647]
[1720184094251,8.02520366,129.79,129.77,26.9703]
[1720184094550,8.02520366,129.79,129.75,7.7067]
[1720184094763,15.73020366,129.79,129.75,7.7067]
[1720184097457,8.02520366,129.79,129.76,7.7065]
[1720184097661,8.02520366,129.79,129.72,100.0]
[1720184098541,8.02520366,129.79,129.76,7.7062]
[1720184099080,8.02520366,129.79,129.76,26.9721]
[1720184100765,15.72990366,129.79,129.76,19.2659]
[1720184100968,8.02520366,129.79,129.76,26.9723]
[1720184101460,8.02520366,129.79,129.78,7.7053]
[1720184101644,6.5287,129.83,129.77,19.2633]
[1720184101959,15.72549402,129.81,129.77,26.9689]
[1720184102650,8.02189402,129.81,129.78,7.705]
[1720184102848,8.02189402,129.81,129.79,7.7043]
[1720184103055,8.02189402,129.81,129.78,19.2619]
[1720184103242,8.02189402,129.81,129.76,19.2661]
[1720184103440,8.02189402,129.81,129.78,7.705]
[1720184104845,8.02189402,129.81,129.77,19.2634]
[1720184105339,8.02189402,129.81,129.78,7.7049]
[1720184105535,6.82189402,129.81,129.78,7.7049]
[1720184106169,6.82189402,129.81,129.79,19.2615]
[1720184106459,25.1337,129.85,129.79,19.2615]
[1720184106661,7.7018,129.84,129.8,7.7039]
[1720184107266,17.4323,129.85,129.81,19.2582]
[1720184107450,41.9509,129.86,129.82,7.7027]
[1720184107635,20.0,129.85,129.82,7.7027]
[1720184107843,27.7012,129.85,129.81,26.9614]
[1720184108457,7.7018,129.84,129.81,19.2582]
[1720184112056,7.712,129.67,129.63,7.7142]
[1720184112274,7.7129,129.66,129.61,7.8153]
[1720184112562,7.7114,129.68,129.63,7.714]
[1720184112960,7.7114,129.68,129.64,7.7135]
[1720184113964,7.7108,129.69,129.65,7.713]
[1720184114272,19.2653,129.77,129.68,7.7111]
[1720184114566,7.7085,129.73,129.68,7.7111]
[1720184114770,7.7089,129.72,129.67,7.7117]
[1720184115659,7.7085,129.73,129.68,7.7112]
[1720184116258,12.46423996,129.76,129.66,19.2801]
[1720184116456,7.7095,129.71,129.66,26.9924]
[1720184117057,7.7095,129.71,129.67,7.7117]
[1720184118845,7.7102,129.7,129.66,19.2801]
[1720184119066,7.7108,129.69,129.66,19.2801]
[1720184119570,19.2742,129.71,129.61,0.1]
[1720184119873,7.7112,129.69,129.64,7.7135]
[1720184120076,20.0,129.68,129.64,26.997]
[1720184120645,7.7112,129.69,129.65,7.7129]
[1720184120848,7.7107,129.69,129.65,7.7129]
[1720184121046,0.17,129.7,129.65,7.7129]
[1720184121273,20.17,129.71,129.65,7.7129]
[1720184121474,7.711,129.69,129.64,26.9969]
[1720184121873,7.711,129.69,129.65,7.713]
[1720184122367,7.7118,129.67,129.64,19.2835]
[1720184122751,7.7118,129.67,129.63,7.7138]
[1720184123955,7.8815,129.68,129.64,7.7136]
[1720184124150,0.17,129.68,129.62,19.2856]
[1720184124367,20.17,129.69,129.62,19.2856]
[1720184124750,7.7119,129.67,129.63,7.7138]
[1720184124945,20.17,129.69,129.62,19.2856]
[1720184125146,20.0,129.69,129.64,26.9976]
[1720184125352,39.77409784,129.74,129.64,19.284]
[1720184125562,14.2076,129.76,129.72,7.7087]
[1720184125759,16.9546,129.78,129.73,7.7082]
[1720184125964,6.5046,129.79,129.7,123.13]
[1720184126167,7.7051,129.79,129.74,7.7075]
[1720184126378,7.7051,129.79,129.74,26.9767]
[1720184126766,6.04028278,129.8,129.74,19.2692]
[1720184126970,16.8975,129.83,129.74,19.2692]
[1720184126971,7.7053,129.79,129.74,7.7075]
[1720184127172,19.2597,129.81,129.73,19.27]
[1720184127481,7.7069,129.76,129.72,7.7084]
[1720184127774,7.7061,129.77,129.72,7.7084]
[1720184127950,7.7061,129.77,129.73,7.7081]
[1720184128156,38.5165,129.82,129.72,7.7086]
[1720184128157,7.7066,129.76,129.72,7.7086]
[1720184128369,7.7066,129.76,129.71,26.9816]
[1720184128749,19.2649,129.77,129.67,7.2563]
[1720184128946,20.17,129.76,129.67,7.2563]
[1720184129174,20.17,129.76,129.69,7.7103]
[1720184129175,7.7081,129.74,129.69,7.7103]
[1720184129379,7.8784,129.73,129.69,7.7103]
[1720184129592,7.8784,129.73,129.65,279.1816]
[1720184129593,0.17,129.73,129.65,279.1816]
[1720184129800,19.2684,129.75,129.64,116.4372]
[1720184129801,7.7091,129.72,129.67,7.7114]
[1720184129998,7.7091,129.72,129.67,26.991]
[1720184130206,7.7091,129.72,129.68,7.7112]
[1720184130910,7.7085,129.73,129.69,7.7106]
[1720184131094,0.17,129.74,129.69,19.2764]
[1720184131407,0.17,129.75,129.69,19.2764]
[1720184132089,0.17,129.75,129.66,19.2798]
[1720184132493,0.17,129.75,129.68,7.7108]
[1720184132831,7.7089,129.72,129.68,26.9887]
[1720184132989,0.17,129.75,129.64,116.4372]
[1720184132990,27.7098,129.71,129.66,7.7119]
[1720184133196,27.7098,129.71,129.61,0.1]
[1720184133197,7.7116,129.68,129.61,0.1]
[1720184133377,7.7119,129.67,129.61,0.1]
[1720184133576,7.7119,129.67,129.63,7.7138]
[1720184134607,7.7132,129.65,129.61,7.8153]
[1720184134810,20.17,129.64,129.61,0.1]
[1720184135118,7.7142,129.63,129.61,0.1]
[1720184135301,7.7148,129.62,129.61,0.1]
[1720184135611,27.7148,129.62,129.61,0.1]
[1720184135907,27.8848,129.62,129.61,0.1]
[1720184136813,8.5152,129.61,129.55,7.719]
[1720184137015,7.7176,129.58,129.54,19.2976]